bitfinex/quotes_SOLUSD_20220311
["timestamp","ask_amount","ask_price","bid_price","bid_amount"]
[1646963349047,27.80353279,81.989,81.912,23.6611]
[1646963349546,6.101,81.988,81.912,23.6611]
[1646963349945,27.80353279,81.987,81.93,18.3087]
[1646963350151,27.80353279,81.987,81.912,23.6611]
[1646963350353,23.9149,81.986,81.912,23.6611]
[1646963350550,49.38370777,81.986,81.912,23.6611]
[1646963350747,53.27234056,81.985,81.912,23.6611]
[1646963350949,6.101,81.984,81.92,18.3114]
[1646963351151,59.37334056,81.984,81.92,18.3114]
[1646963351350,25.46880777,81.984,81.92,18.3114]
[1646963351551,27.80353279,81.983,81.92,18.3114]
[1646963351750,6.101,81.985,81.912,23.6611]
[1646963351951,23.9149,81.986,81.912,23.6611]
[1646963352152,27.80353279,81.985,81.912,23.6611]
[1646963352349,33.98353279,81.985,81.912,23.6611]
[1646963353250,33.98353279,81.985,81.92,18.3106]
[1646963353479,6.101,81.984,81.92,18.3106]
[1646963353652,6.101,81.984,81.912,23.6611]
[1646963353955,27.80353279,81.983,81.917,0.61898487]
[1646963354152,6.101,81.982,81.93,18.3096]
[1646963356252,6.101,81.982,81.93,51.71161985]
[1646963356454,6.099,81.985,81.93,51.71161985]
[1646963356655,23.9149,81.986,81.94,18.3075]
[1646963357151,23.9149,81.986,81.912,23.6611]
[1646963358254,23.9149,81.986,81.93,18.3095]
[1646963359559,23.9149,81.986,81.94,18.3075]
[1646963361582,23.9149,81.986,81.93,18.3096]
[1646963361782,6.099,81.985,81.93,18.3096]
[1646963363885,59.37134056,81.985,81.92,18.3116]
[1646963364889,59.37134056,81.985,81.93,18.3099]
[1646963365288,33.90253279,81.985,81.93,18.3099]
[1646963369195,6.099,81.985,81.93,18.3099]
[1646963369394,56.47865859,81.993,81.93,14.54]
[1646963370398,56.47865859,81.993,81.98,18.2985]
[1646963370695,23.6915,82.017,81.98,18.2985]
[1646963370898,23.6915,82.017,81.972,5.67]
[1646963371296,23.6915,82.017,81.98,18.2986]
[1646963371697,55.12207731,82.016,81.98,18.2986]
[1646963372696,55.12207731,82.016,81.96,60.994]
[1646963372900,55.12207731,82.016,81.95,14.54]
[1646963373900,55.12207731,82.016,81.96,18.3006]
[1646963374099,55.12207731,82.016,81.952,6.098]
[1646963375102,55.12207731,82.016,81.97,18.3006]
[1646963375504,55.12207731,82.016,81.952,6.098]
[1646963377207,55.12207731,82.016,81.97,18.3004]
[1646963379313,55.12207731,82.016,81.98,18.2968]
[1646963379510,6.097,82.032,81.981,10.11195747]
[1646963379735,23.9256,82.043,81.981,10.11195747]
[1646963379911,23.9256,82.043,81.981,17.30195747]
[1646963380511,53.8486181,82.042,81.981,17.30195747]
[1646963380713,53.8486181,82.042,81.99,18.2956]
[1646963380911,27.80353279,82.041,81.99,18.2956]
[1646963381313,25.46880777,82.04,81.99,18.2956]
[1646963381713,53.27234056,82.04,81.99,18.2956]
[1646963381915,53.27234056,82.04,81.971,6.096]
[1646963381916,53.27234056,82.04,81.98,18.298]
[1646963382515,6.096,82.039,81.98,18.298]
[1646963383316,33.89953279,82.039,81.98,18.298]
[1646963385016,27.80353279,82.039,81.98,18.298]
[1646963386620,27.80353279,82.039,81.99,18.2956]
[1646963388049,53.8486181,82.042,82.0,18.2932]
[1646963388243,53.8486181,82.042,81.997,8.19790726]
[1646963389044,53.8486181,82.042,82.01,18.2915]
[1646963389245,53.8486181,82.042,81.997,8.19790726]
[1646963390249,53.8486181,82.042,82.0,18.2923]
[1646963390450,53.8486181,82.042,81.981,6.095]
[1646963391055,81.65215089,82.042,81.981,6.095]
[1646963391251,81.65215089,82.042,81.98,14.54]
[1646963391950,24.7506,82.041,81.98,14.54]
[1646963392151,24.7506,82.041,81.99,18.2956]
[1646963392351,27.80353279,82.04,81.99,18.2956]
[1646963393968,27.80353279,82.04,81.97,14.54]
[1646963394157,1.63306165,82.037,81.947,6.096]
[1646963394356,18.3138,82.02,81.929,6.098]
[1646963394561,18.3138,82.02,81.923,6.099]
[1646963394562,1.63306165,82.014,81.923,6.099]
[1646963394757,14.54,82.01,81.907,6.099]
[1646963394957,1.63306165,82.003,81.892,28.9173]
[1646963395156,1.63306165,81.996,81.892,6.099]
[1646963395361,1.63306165,81.99,81.881,6.101]
[1646963395558,1.63306165,81.979,81.87,18.3224]
[1646963395759,1.63306165,81.974,81.87,18.3224]
[1646963395957,14.54,81.96,81.871,62.15870307]
[1646963396157,39.71585334,81.959,81.871,62.15870307]
[1646963396358,6.103,81.958,81.871,62.15870307]
[1646963396756,72.37876971,81.957,81.871,62.15870307]
[1646963396960,6.103,81.956,81.88,18.3203]
[1646963397157,42.83035062,81.956,81.871,62.15870307]
[1646963397357,61.34749765,81.956,81.871,62.15870307]
[1646963397560,24.60610617,81.955,81.871,62.15870307]
[1646963397758,6.104,81.954,81.871,62.15870307]
[1646963397959,97.27106298,81.954,81.88,18.3215]
[1646963398160,33.68287105,81.953,81.88,18.3215]
[1646963398359,6.103,81.952,81.88,18.3215]
[1646963398559,63.58719193,81.952,81.88,18.3215]
[1646963398761,33.68287105,81.951,81.871,62.15870307]
[1646963398960,6.104,81.95,81.871,62.15870307]
[1646963399162,49.32656533,81.95,81.871,62.15870307]
[1646963399361,36.72735062,81.949,81.87,18.3233]
[1646963399560,6.104,81.948,81.87,18.3233]
[1646963399761,97.27106298,81.948,81.87,18.3233]
[1646963399960,3.04447957,81.947,81.87,18.3233]
[1646963400164,3.04447957,81.947,81.826,24.5298]
[1646963400165,6.104,81.946,81.826,24.5298]
[1646963400363,49.61862687,81.944,81.821,58.75059659]
[1646963400563,14.54,81.93,81.821,58.75059659]
[1646963400764,39.71585334,81.928,81.821,58.75059659]
[1646963400964,39.71585334,81.928,81.799,46.0937]
[1646963400965,6.106,81.927,81.799,46.0937]
[1646963401266,24.5913,81.926,81.8,61.1137]
[1646963401463,6.107,81.925,81.799,46.0937]
[1646963401666,14.54,81.92,81.799,46.0937]
[1646963401864,6.107,81.919,81.799,46.0937]
[1646963402065,6.107,81.919,81.8,62.5100513]
[1646963402264,48.69000617,81.918,81.8,62.5100513]
[1646963402464,6.107,81.917,81.8,62.5100513]
[1646963402667,30.71310617,81.917,81.8,62.5100513]
[1646963402867,24.60610617,81.916,81.8,62.5100513]
[1646963403068,49.61862687,81.914,81.8,62.5100513]
[1646963403267,39.71585334,81.899,81.8,62.5100513]
[1646963403468,54.9333,81.898,81.8,62.5100513]
[1646963403669,87.81138576,81.898,81.8,62.5100513]
[1646963403868,55.24449765,81.897,81.8,62.5100513]
[1646963404068,6.107,81.896,81.8,62.5100513]
[1646963404271,94.22958341,81.896,81.8,62.5100513]
[1646963404473,33.68287105,81.895,81.8,62.5100513]
[1646963404670,14.54,81.89,81.8,62.5100513]
[1646963404871,6.109,81.889,81.8,62.5100513]
[1646963405071,39.79187105,81.889,81.8,62.5100513]
[1646963405271,36.72735062,81.888,81.8,62.5100513]
[1646963405470,18.3391,81.88,81.8,62.5100513]
[1646963405671,6.109,81.879,81.8,62.5100513]
[1646963405993,14.06347957,81.879,81.8,80.8471513]
[1646963406170,3.04447957,81.878,81.8,80.8471513]
[1646963406372,6.109,81.877,81.8,80.8471513]
[1646963406772,18.3381,81.87,81.8,80.8471513]
[1646963407069,42.25333013,81.868,81.8,80.8471513]
[1646963407271,6.109,81.867,81.8,80.8471513]
[1646963408173,42.25333013,81.868,81.8,62.5100513]
[1646963408371,42.25333013,81.868,81.8,77.0500513]
[1646963408570,42.25333013,81.868,81.801,45.99002561]
[1646963408973,42.25333013,81.868,81.802,16.18158999]
[1646963409172,42.25333013,81.868,81.81,18.3332]
[1646963409375,42.25333013,81.868,81.8,62.5100513]
[1646963409572,48.74333013,81.868,81.79,30.72158999]
[1646963409771,48.74333013,81.868,81.78,14.54]
[1646963409972,6.11,81.867,81.78,14.54]
[1646963410174,9.15447957,81.867,81.78,14.54]
[1646963410374,29.84475243,81.866,81.77,18.3442]
[1646963410576,6.111,81.865,81.771,60.38402207]
[1646963410775,9.15547957,81.865,81.771,60.38402207]
[1646963410974,3.04447957,81.864,81.771,60.38402207]
[1646963411174,6.111,81.863,81.771,60.38402207]
[1646963411574,3.04447957,81.862,81.771,60.38402207]
[1646963411774,6.111,81.861,81.771,60.38402207]
[1646963412175,3.04447957,81.86,81.78,18.3418]
[1646963412377,6.11,81.859,81.78,18.3418]
[1646963412778,3.04447957,81.858,81.78,18.3418]
[1646963413077,6.111,81.857,81.78,18.3418]
[1646963413499,47.08115008,81.855,81.771,60.38402207]
[1646963413700,6.111,81.854,81.771,60.38402207]
[1646963413999,47.08115008,81.855,81.781,3.04447957]
[1646963414801,9.15547957,81.854,81.768,3.04447957]
[1646963415003,62.138432,81.854,81.754,3.04447957]
[1646963415204,32.889232,81.853,81.754,3.04447957]
[1646963415399,6.112,81.852,81.74,14.54]
[1646963415605,39.001232,81.852,81.76,18.347]
[1646963415801,35.95675243,81.852,81.76,82.75831534]
[1646963416001,18.3467,81.84,81.76,82.75831534]
[1646963416200,42.25333013,81.839,81.76,64.41131534]
[1646963416401,6.112,81.838,81.76,64.41131534]
[1646963416601,6.112,81.838,81.77,18.3447]
[1646963416801,6.112,81.838,81.744,6.0]
[1646963417001,53.1232,81.838,81.741,6.0]
[1646963417401,53.1232,81.838,81.736,3.04447957]
[1646963417402,18.3486,81.83,81.736,3.04447957]
[1646963417602,18.3486,81.83,81.73,17.8538]
[1646963417603,6.113,81.829,81.73,17.8538]
[1646963417802,9.15747957,81.829,81.73,17.8538]
[1646963418101,32.889232,81.828,81.72,61.1699]
[1646963418301,6.114,81.827,81.72,61.1699]
[1646963418504,6.114,81.827,81.71,14.54]
[1646963418505,39.003232,81.827,81.7,14.54]
[1646963418701,103.0811,81.826,81.72,18.3563]
[1646963418902,53.19515008,81.825,81.694,25.65080939]
[1646963419706,79.3916,81.809,81.715,0.04387869]
[1646963419904,42.25333013,81.808,81.715,0.04387869]
[1646963420102,6.115,81.807,81.715,0.04387869]
[1646963421105,42.25333013,81.808,81.73,18.3523]
[1646963421305,3.04447957,81.807,81.73,18.3523]
[1646963421706,6.114,81.806,81.73,18.3523]
[1646963422207,18.3542,81.8,81.725,5.98659677]
[1646963422404,6.115,81.799,81.72,18.3565]
[1646963422606,35.95975243,81.799,81.72,18.3565]
[1646963423007,39.004232,81.799,81.715,0.04387869]
[1646963423706,42.25333013,81.808,81.716,3.04447957]
[1646963423908,42.25333013,81.808,81.72,14.54]
[1646963424306,42.25333013,81.808,81.721,3.04447957]
[1646963424714,42.25333013,81.808,81.731,18.41774991]
[1646963425108,6.114,81.807,81.731,18.41774991]
[1646963425509,48.36733013,81.808,81.732,3.04447957]
[1646963425709,6.114,81.825,81.77,18.3451]
[1646963425911,54.2474,81.857,81.77,5.06]
[1646963426511,54.2474,81.857,81.771,3.04447957]
[1646963426711,65.55412248,81.856,81.81,18.3348]
[1646963426912,6.11,81.855,81.811,18.41774991]
[1646963427512,6.11,81.856,81.811,18.41774991]
[1646963427711,6.11,81.856,81.82,18.3341]
[1646963427911,48.1354,81.857,81.82,18.3341]
[1646963428112,6.109,81.871,81.82,18.3341]
[1646963428312,62.47604658,81.87,81.82,18.3341]
[1646963428511,6.109,81.869,81.82,18.3341]
[1646963429919,18.3362,81.88,81.811,18.41774991]
[1646963429920,6.109,81.881,81.811,18.41774991]
[1646963430118,6.109,81.881,81.811,24.66774991]
[1646963430416,6.109,81.887,81.83,61.0893]
[1646963430616,6.109,81.887,81.811,24.66774991]
[1646963431018,87.14079626,81.886,81.811,6.25]
[1646963431220,6.107,81.885,81.79,14.54]
[1646963431421,38.996232,81.885,81.79,14.54]
[1646963431620,29.84475243,81.884,81.79,14.54]
[1646963431817,6.109,81.883,81.79,14.54]
[1646963432017,6.109,81.883,81.791,49.94028072]
[1646963432018,18.3361,81.88,81.791,49.94028072]
[1646963432217,6.109,81.879,81.791,49.94028072]
[1646963432423,3.04447957,81.879,81.791,49.94028072]
[1646963432619,6.109,81.878,81.791,49.94028072]
[1646963432820,9.15347957,81.878,81.791,49.94028072]
[1646963433021,3.04447957,81.877,81.81,18.3352]
[1646963433223,6.109,81.876,81.811,19.14523905]
[1646963434026,6.109,81.885,81.84,18.33]
[1646963434223,51.64757957,81.889,81.826,49.94028072]
[1646963434625,48.6031,81.889,81.826,49.94028072]
[1646963435026,6.107,81.885,81.826,49.94028072]
[1646963435625,6.107,81.885,81.81,14.54]
[1646963435825,3.04447957,81.884,81.78,23.5749]
[1646963436024,6.11,81.883,81.79,14.54]
[1646963436226,35.95475243,81.883,81.79,14.54]
[1646963436426,3.04447957,81.882,81.79,14.54]
[1646963436627,18.3355,81.88,81.8,18.3391]
[1646963436836,6.109,81.879,81.8,18.3391]
[1646963437027,9.15347957,81.879,81.791,52.55802845]
[1646963437227,27.96487957,81.878,81.78,75.6651]
[1646963437430,6.11,81.877,81.751,23.5749]
[1646963437633,6.11,81.877,81.761,6.0]
[1646963437634,18.3378,81.87,81.761,6.0]
[1646963437831,6.111,81.869,81.761,6.0]
[1646963438230,32.03843638,81.868,81.762,63.63782188]
[1646963438431,6.111,81.867,81.762,63.63782188]
[1646963438637,58.02957209,81.867,81.762,63.63782188]
[1646963438835,76.13957209,81.866,81.762,63.63782188]
[1646963439035,6.111,81.865,81.762,63.63782188]
[1646963439236,14.54,81.86,81.74,14.54]
[1646963439435,121.8,81.858,81.71,14.54]
[1646963439636,121.8,81.856,81.72,18.3557]
[1646963439859,121.8,81.854,81.713,3.04447957]
[1646963440059,14.54,81.84,81.713,3.04447957]
[1646963440260,14.54,81.84,81.72,14.54]
[1646963440261,142.10744383,81.839,81.72,14.54]
[1646963440459,18.3546,81.83,81.72,14.54]
[1646963440658,6.114,81.829,81.75,18.3507]
[1646963440859,54.2119,81.829,81.75,18.3507]
[1646963441060,3.04447957,81.828,81.75,18.3507]
[1646963441260,32.03843638,81.826,81.75,18.3507]
[1646963441466,6.113,81.825,81.75,18.3507]
[1646963441661,9.15747957,81.825,81.75,18.3507]
[1646963441861,3.04447957,81.824,81.75,18.3507]
[1646963442065,6.113,81.823,81.75,18.3507]
[1646963442562,3.04447957,81.822,81.75,18.3507]
[1646963442762,6.113,81.821,81.75,18.3507]
[1646963443161,3.04447957,81.82,81.75,18.3507]
[1646963443461,6.113,81.819,81.75,18.3507]
[1646963443662,6.113,81.819,81.715,0.04387869]
[1646963443864,26.88427957,81.818,81.715,0.04387869]
[1646963444066,6.114,81.817,81.715,0.04387869]
[1646963444262,121.8,81.816,81.715,0.04387869]
[1646963444463,121.8,81.814,81.715,0.04387869]
[1646963444663,14.54,81.8,81.715,0.04387869]
[1646963444863,18.3614,81.79,81.715,0.04387869]
[1646963445063,6.115,81.789,81.715,0.04387869]
[1646963445267,6.115,81.798,81.715,0.04387869]
[1646963445462,3.04447957,81.789,81.715,0.04387869]
[1646963445663,29.9005,81.788,81.715,0.04387869]
[1646963445862,18.3595,81.78,81.715,0.04387869]
[1646963446064,6.115,81.779,81.715,0.04387869]
[1646963446263,48.7576861,81.778,81.715,0.04387869]
[1646963446764,6.115,81.777,81.715,0.04387869]
[1646963446962,6.115,81.777,81.72,29.83892112]
[1646963448165,6.115,81.777,81.73,18.3551]
[1646963448366,48.7576861,81.778,81.72,72.65632112]
[1646963448763,6.115,81.777,81.72,72.65632112]
[1646963448967,48.7576861,81.778,81.72,72.65632112]
[1646963449766,48.7576861,81.778,81.74,18.3525]
[1646963449968,48.7576861,81.778,81.72,72.65632112]
[1646963450266,48.7576861,81.778,81.72,11.48202112]
[1646963450468,48.7576861,81.778,81.715,0.04387869]
[1646963450866,6.115,81.777,81.715,0.04387869]
[1646963452270,48.7576861,81.778,81.74,18.3509]
[1646963454269,48.7576861,81.778,81.737,21.18624142]
[1646963454477,48.7576861,81.778,81.73,18.3546]
[1646963454772,6.115,81.798,81.715,0.04387869]
[1646963454970,6.115,81.808,81.72,14.54]
[1646963455171,96.4505,81.809,81.721,3.04447957]
[1646963455373,96.4505,81.809,81.76,18.3481]
[1646963455572,96.4505,81.809,81.721,3.04447957]
[1646963455770,51.52848401,81.798,81.721,3.04447957]
[1646963456271,51.52848401,81.798,81.74,61.1554]
[1646963456671,6.115,81.821,81.74,66.7154]
[1646963456873,1.63306165,81.875,81.74,66.7154]
[1646963456874,6.113,81.831,81.741,9.15747957]
[1646963457071,6.113,81.848,81.741,9.15747957]
[1646963457272,6.113,81.848,81.8,61.1139]
[1646963457474,6.113,81.848,81.8,66.8439]
[1646963457672,56.09357446,81.847,81.81,18.3352]
[1646963457871,56.09357446,81.847,81.771,6.11]
[1646963458070,56.09357446,81.847,81.77,14.54]
[1646963458273,30.96286932,81.846,81.77,14.54]
[1646963458670,52.17857209,81.845,81.77,14.54]
[1646963458870,52.17857209,81.845,81.771,63.23768769]
[1646963458871,6.111,81.844,81.771,63.23768769]
[1646963459073,27.32670277,81.844,81.771,63.23768769]
[1646963459272,18.3431,81.84,81.77,14.54]
[1646963459473,6.112,81.839,81.75,14.54]
[1646963459673,77.57688234,81.839,81.75,14.54]
[1646963459873,6.112,81.838,81.75,14.54]
[1646963460075,9.15647957,81.838,81.75,14.54]
[1646963460277,3.04447957,81.837,81.751,54.59037059]
[1646963460473,18.346,81.83,81.77,18.344]
[1646963460674,33.24090575,81.829,81.751,54.59037059]
[1646963460882,6.113,81.828,81.751,54.59037059]
[1646963461077,9.15747957,81.828,81.751,54.59037059]
[1646963461476,27.71467957,81.827,81.751,54.59037059]
[1646963461679,6.113,81.826,81.76,18.3465]
[1646963461876,9.15747957,81.826,81.76,18.3465]
[1646963462075,3.04447957,81.825,81.76,18.3465]
[1646963462876,3.04447957,81.825,81.752,6.113]
[1646963463076,24.6702,81.827,81.752,6.113]
[1646963463276,24.6702,81.827,81.752,16.52747957]
[1646963463479,24.6702,81.827,81.753,3.04447957]
[1646963463677,33.24090575,81.829,81.754,6.113]
[1646963463875,33.24090575,81.829,81.78,18.3434]
[1646963464275,33.24090575,81.829,81.754,6.113]
[1646963464781,9.15747957,81.828,81.741,6.113]
[1646963464978,9.15747957,81.828,81.74,3.04447957]
[1646963464979,22.6494,81.827,81.72,18.3556]
[1646963465175,6.114,81.826,81.721,6.114]
[1646963465377,51.49189959,81.826,81.721,6.114]
[1646963465577,76.34376891,81.826,81.718,56.95151597]
[1646963465780,45.37789959,81.825,81.706,3.04447957]
[1646963466080,18.3617,81.81,81.69,14.54]
[1646963466277,53.7179,81.809,81.691,6.115]
[1646963466577,73.32909682,81.809,81.691,6.115]
[1646963466779,75.70477128,81.808,81.692,64.63166204]
[1646963466978,6.115,81.807,81.7,18.3607]
[1646963467179,6.115,81.807,81.692,64.63166204]
[1646963467180,18.3614,81.8,81.701,6.115]
[1646963467379,6.115,81.799,81.693,6.115]
[1646963467578,24.1929,81.798,81.693,6.115]
[1646963467780,6.115,81.797,81.693,6.115]
[1646963467984,9.15947957,81.797,81.693,6.115]
[1646963468380,33.24090575,81.795,81.693,6.115]
[1646963468586,6.115,81.794,81.693,6.115]
[1646963468780,9.15947957,81.794,81.693,6.115]
[1646963468980,3.04447957,81.793,81.693,6.115]
[1646963469181,18.3599,81.79,81.71,18.3589]
[1646963469382,6.115,81.789,81.71,18.3589]
[1646963469583,28.81118234,81.789,81.693,6.115]
[1646963469782,3.04447957,81.788,81.693,6.115]
[1646963469984,6.115,81.787,81.693,6.115]
[1646963470383,26.12267957,81.786,81.694,57.82321623]
[1646963470582,6.115,81.785,81.694,57.82321623]
[1646963470781,9.15947957,81.785,81.694,57.82321623]
[1646963470983,6.115,81.785,81.694,57.82321623]
[1646963471184,18.3603,81.78,81.71,18.3598]
[1646963471382,56.09357446,81.778,81.711,11.26230354]
[1646963471682,6.115,81.777,81.711,11.26230354]
[1646963472384,6.115,81.777,81.71,18.3598]
[1646963473183,9.15947957,81.777,81.693,6.115]
[1646963473387,24.0963,81.776,81.693,6.115]
[1646963473613,6.115,81.775,81.693,6.115]
[1646963473815,33.30551567,81.775,81.693,6.115]
[1646963474013,25.67907957,81.774,81.693,6.115]
[1646963474216,6.115,81.773,81.71,18.3594]
[1646963474415,36.54684901,81.773,81.71,18.3594]
[1646963474614,33.50236944,81.773,81.71,18.3594]
[1646963474814,3.04447957,81.772,81.694,60.37576256]
[1646963475014,6.115,81.771,81.694,60.37576256]
[1646963475214,6.115,81.771,81.7,18.3618]
[1646963475414,3.04447957,81.77,81.7,18.3618]
[1646963475616,6.115,81.769,81.7,18.3618]
[1646963476014,36.54684901,81.769,81.7,18.3618]
[1646963476214,27.38736944,81.768,81.7,18.3618]
[1646963476417,6.115,81.767,81.7,18.3618]
[1646963476614,9.15947957,81.767,81.694,60.37576256]
[1646963477014,3.04447957,81.766,81.694,60.37576256]
[1646963477215,39.35590575,81.765,81.693,6.115]
[1646963477613,42.40038532,81.765,81.693,6.115]
[1646963478214,42.40038532,81.765,81.694,48.69825543]
[1646963479219,42.40038532,81.765,81.693,6.115]
[1646963480218,36.28538532,81.765,81.693,6.115]
[1646963480418,36.28538532,81.765,81.694,62.00129828]
[1646963480819,36.28538532,81.765,81.7,18.3618]
[1646963481222,6.115,81.764,81.715,0.00387869]
[1646963481424,18.3728,81.76,81.715,0.00387869]
[1646963481629,6.117,81.759,81.715,0.00387869]
[1646963481824,9.16147957,81.759,81.715,0.00387869]
[1646963482022,36.54884901,81.759,81.715,0.00387869]
[1646963482223,46.99856626,81.758,81.715,0.00387869]
[1646963482423,82.356,81.757,81.715,0.00387869]
[1646963482623,129.35456626,81.757,81.715,0.00387869]
[1646963482929,18.3743,81.75,81.715,0.00387869]
[1646963483126,14.54,81.74,81.715,0.00387869]
[1646963483326,30.6617,81.739,81.715,0.00387869]
[1646963483524,33.70617957,81.739,81.715,0.00387869]
[1646963483823,3.04447957,81.738,81.715,0.00387869]
[1646963484024,6.117,81.737,81.715,0.00387869]
[1646963484226,18.371,81.73,81.715,0.00387869]
[1646963484424,6.118,81.729,81.715,0.00387869]
[1646963484824,9.16247957,81.729,81.715,0.00387869]
[1646963485025,3.04447957,81.728,81.715,0.00387869]
[1646963485226,6.118,81.727,81.715,0.00387869]
[1646963485626,3.04447957,81.726,81.715,0.00387869]
[1646963485828,6.118,81.725,81.715,0.00387869]
[1646963486025,3.03219997,81.724,81.715,0.00387869]
[1646963486226,6.118,81.723,81.715,0.00387869]
[1646963486426,36.54984901,81.723,81.715,0.00387869]
[1646963486627,24.9269,81.722,81.715,0.00387869]
[1646963486830,6.118,81.721,81.715,0.00387869]
[1646963487028,36.54984901,81.721,81.715,0.00387869]
[1646963487227,33.50536944,81.721,81.715,0.00387869]
[1646963487527,30.43184901,81.72,81.715,0.00387869]
[1646963487728,6.118,81.719,81.715,0.00387869]
[1646963487929,53.11656626,81.719,81.715,0.00387869]
[1646963488127,3.04447957,81.718,81.715,0.00387869]
[1646963488328,6.118,81.717,81.715,0.00387869]
[1646963488529,33.50536944,81.717,81.715,0.00387869]
[1646963488728,3.04447957,81.716,81.715,0.00387869]
[1646963488929,36.54984901,81.716,81.715,0.00387869]
[1646963489331,43.46984901,81.716,81.715,0.00387869]
[1646963489530,60.03656626,81.716,81.715,0.00387869]
[1646963489728,20.0,81.715,81.621,51.43378565]
[1646963489930,14.54,81.71,81.621,51.43378565]
[1646963490329,36.55384901,81.709,81.621,51.43378565]
[1646963490529,18.3804,81.69,81.621,51.43378565]
[1646963490728,48.16547932,81.689,81.621,51.43378565]
[1646963490932,48.16547932,81.689,81.62,18.38]
[1646963491731,18.38,81.68,81.62,18.38]
[1646963492331,18.38,81.68,81.61,18.3822]
[1646963492531,18.38,81.68,81.545,121.8]
[1646963492532,3.04447957,81.679,81.573,17.9306]
[1646963492833,18.3883,81.65,81.579,3.04447957]
[1646963493032,41.16900089,81.649,81.583,64.34564225]
[1646963493433,41.16900089,81.649,81.59,18.387]
[1646963493634,22.8929,81.687,81.59,18.387]
[1646963493835,22.8929,81.687,81.59,32.927]
[1646963494033,22.8929,81.687,81.591,44.95151588]
[1646963494232,22.8929,81.687,81.591,47.99599545]
[1646963494438,29.7117,81.686,81.592,28.41440546]
[1646963494637,52.51128538,81.685,81.592,28.41440546]
[1646963494840,18.38,81.68,81.601,4.73987752]
[1646963495235,6.123,81.679,81.593,3.04447957]
[1646963495436,6.123,81.684,81.577,3.04447957]
[1646963495638,27.35854112,81.684,81.577,3.04447957]
[1646963495837,18.3815,81.67,81.575,23.2567]
[1646963496037,6.125,81.669,81.576,6.0]
[1646963496236,6.125,81.669,81.577,63.48504967]
[1646963496436,23.5887,81.686,81.577,63.48504967]
[1646963496437,36.82319483,81.668,81.577,66.52952924]
[1646963496838,36.82319483,81.668,81.578,3.04447957]
[1646963497040,36.82319483,81.668,81.58,32.9266]
[1646963497240,6.125,81.667,81.58,32.9266]
[1646963497841,23.6834,81.666,81.58,32.9266]
[1646963498041,6.125,81.665,81.58,32.9266]
[1646963498241,18.3861,81.66,81.58,18.3866]
[1646963498442,30.9777,81.659,81.575,23.2567]
[1646963498642,30.9777,81.659,81.552,3.04447957]
[1646963498844,59.64945684,81.659,81.552,3.04447957]
[1646963499043,25.62727727,81.658,81.526,3.04447957]
[1646963499242,6.128,81.657,81.534,24.61668472]
[1646963499444,52.51128538,81.655,81.536,59.14101237]
[1646963499645,6.127,81.654,81.536,59.14101237]
[1646963499861,14.54,81.65,81.537,3.04447957]
[1646963500062,18.3916,81.64,81.54,18.3959]
[1646963500263,36.82319483,81.638,81.541,6.0]
[1646963500462,36.82319483,81.638,81.541,3.04447957]
[1646963500663,6.128,81.637,81.542,6.0]
[1646963500865,6.128,81.637,81.542,33.66116429]
[1646963501168,6.128,81.637,81.543,27.66116429]
[1646963501365,42.95119483,81.638,81.56,18.3915]
[1646963501667,42.95119483,81.638,81.561,9.9445074]
[1646963503171,42.95119483,81.638,81.57,18.3884]
[1646963503368,36.82319483,81.638,81.57,18.3884]
[1646963503572,36.82319483,81.638,81.571,3.04447957]
[1646963504172,18.3923,81.63,81.561,9.9445074]
[1646963504371,18.3923,81.63,81.56,18.3902]
[1646963504572,18.3923,81.63,81.556,3.04447957]
[1646963504974,29.2435,81.637,81.556,3.04447957]
[1646963505172,23.1165,81.637,81.556,3.04447957]
[1646963505375,23.1165,81.637,81.56,18.3917]
[1646963507672,6.127,81.636,81.56,18.3917]